Cogmind - Beta 15 @@@ ROGUE MODE // 2025.08.05 @ 02:04:04 Player: Pixel Result: Destroyed self with Subdweller Shrapnel Launcher Performance ------------- Evolutions (0) 0 Regions Visited (3) 600 Robots Destroyed (19) 95 Value Destroyed (502) 502 Prototype IDs (0) 0 Alien Tech Used (0) 0 Bonus (-22) -22 TOTAL SCORE: 1175 Bonus ------- Friendly Fire -22 Cogmind --------- Core Integrity 0/250 Matter 140/300 Energy 199/200 System Corruption 0% Temperature Cool (4) Movement Hovering (77) Location -10/Subcaves Parts ------- > --- POWER (1) -------- Subdweller Power Source > --- PROPULSION (2) --- Combat Airjet Combat Airjet > --- UTILITY (2) ------ Medium Storage Unit Signal Interpreter > --- WEAPON (2) ------- Subdweller Shrapnel Launcher Mining Laser > --- INVENTORY (10) --- Light Treads Light Treads Small Storage Unit Medium Matter Pod (100) Signal Interpreter Improved Light Armor Plating Scrap Shield Beam Rifle Peak State ------------ > --- POWER ------------ Light Deuterium Engine > --- PROPULSION ------- Combat Airjet Combat Airjet > --- UTILITY ---------- Medium Storage Unit Signal Interpreter > --- WEAPON ----------- Heavy Assault Rifle Rocket Launcher > --- INVENTORY -------- Light Ion Engine Light Treads Light Treads Small Storage Unit Medium Matter Pod Signal Interpreter Improved Light Armor Plating Beam Rifle Light Assault Rifle Mining Laser [Rating: 20] Favorites ----------- Power Ion Engine Engine Ion Engine Propulsion Light Treads Treads Light Treads Hover Unit Combat Airjet Utility Signal Interpreter Storage Medium Storage Unit Processor Signal Interpreter Weapon Light Assault Rifle Ballistic Gun Light Assault Rifle Launcher Subdweller Shrapnel Launcher Special Weapon Mining Laser Build | -11 -10 -10 -10 ------- Run | Yrd Mat Min Sub Slots Evolved . | . . . . Power . | . . . . Propulsion . | . . . . Utility . | . . . . Weapon . | . . . . Parts Attached 18 | 6 4 5 3 Power 4 | 1 . 2 1 Engine 4 | 1 . 2 1 Core . | . . . . Reactor . | . . . . Propulsion 4 | 2 . 2 . Treads 2 | 2 . . . Leg . | . . . . Wheel . | . . . . Hover 2 | . . 2 . Flight . | . . . . Utility 3 | 1 2 . . Device . | . . . . Storage 2 | 1 1 . . Processor 1 | . 1 . . Hackware . | . . . . Protection . | . . . . Artifact . | . . . . Weapon 7 | 2 2 1 2 Energy Gun . | . . . . Energy Cannon . | . . . . Ballistic Gun 4 | 2 1 1 . Ballistic Cannon . | . . . . Launcher 2 | . . . 2 Special Weapon 1 | . 1 . . Impact Weapon . | . . . . Slashing Weapon . | . . . . Piercing Weapon . | . . . . Special Melee Weapon . | . . . . Unidentified Prototypes . | . . . . Parts Lost 4 | . 1 . 3 Power 2 | . . . 2 Propulsion . | . . . . Utility . | . . . . Weapon 2 | . 1 . 1 Highest Loss Streak 1 | . 1 . 1 To Critical Strikes . | . . . . Average Backups 7 | 1 5 8 9 Power . | . 1 1 . Propulsion 1 | . 2 2 2 Utility 2 | . . 3 4 Weapon 1 | . 1 2 2 Tool/Special . | . . . . Unused Backups 11 | . . 4 7 Power 1 | . . 1 . Propulsion 4 | . . 2 2 Utility 5 | . . 1 4 Weapon 1 | . . . 1 Tool/Special . | . . . . Average Slot Usage (%) 95 | . 93 99 89 Engine 13 | . 14 14 11 Treads 15 | . 28 17 . Hover 12 | . . 10 28 Storage 14 | . 14 14 14 Processor 12 | . 8 14 14 Ballistic Gun 22 | . 28 27 5 Launcher 2 | . . . 12 Peak Build Rating 20 | 6 7 19 20 Average Rating 11 | 4 6 12 17 On Entrance 8 | . 6 7 19 Naked Turns . | . . . . Heaviest Build 24 | 13 18 19 24 Greatest Support 40 | 40 40 40 24 Greatest Overweight (x) . | . . . . Average Overweight (x) . | . . . . Largest Inventory Capacity 10 | 8 10 10 10 Average Capacity 9 | 7 8 10 10 Most Carried 10 | 3 7 10 10 Average Carried 7 | 1 5 8 9 Final Capacity 10 | 8 10 10 10 Final Carried 10 | 3 6 10 9 Class Distribution -------------------- 73% | Mutant 26% | Scavenger-Mutant Dominant Class ---------------- Mutant | -10/Materials Mutant | -10/Mines Mutant | -10/Subcaves Resources | -11 -10 -10 -10 ----------- Run | Yrd Mat Min Sub Matter Collected 790 | 74 123 518 75 Remotely . | . . . . Salvage Created 547 | . 288 150 109 Parts 42 | . 18 12 12 Haulers Intercepted . | . . . . Recyclers Shooed . | . . . . Parts Field Recycled . | . . . . Retrieved Matter . | . . . . Parts Self-Destructed 1 | . . . 1 Prevented . | . . . . Kills | -11 -10 -10 -10 ------- Run | Yrd Mat Min Sub Combat Hostiles Destroyed 24 | . 8 9 7 Guns 17 | . 8 9 . AOE 7 | . . . 7 Classes Destroyed 5 | . 2 2 1 Swarmer 8 | . 2 3 3 Grunt 6 | . 6 . . Sentry 1 | . . 1 . Subdweller 4 | . . . 4 Assembled 5 | . . 5 . Best Kill Streak 4 | . 4 3 3 Combat Bots Only 4 | . 4 3 3 Max Kills in Single Turn 2 | . 1 1 2 Gunslinging . | . . . . Exploded 2 | . . . 2 Melee . | . . . . Uniques/NPCs Destroyed . | . . . . Combat | -11 -10 -10 -10 -------- Run | Yrd Mat Min Sub Hostile Shots Fired 115 | . 54 47 14 Missed 43 | . 21 15 7 Hits 72 | . 33 32 7 Melee 5 | . . 5 . Projectile 67 | . 33 27 7 Critical Strikes 2 | . . 2 . Damage Taken 1072 | . 354 420 298 Core 260 | . 66 93 101 Absorbed by Shields . | . . . . Core Remaining (%) 100 | 100 . . . Volleys Fired 81 | . 41 30 10 Largest 2 | . 2 2 1 Hottest 43 | . 40 43 40 Shots Fired 150 | . 82 58 10 Gun 140 | . 82 58 . Cannon . | . . . . Launcher 10 | . . . 10 Special . | . . . . Kinetic 150 | . 82 58 10 Thermal . | . . . . Explosive . | . . . . Electromagnetic . | . . . . Robot Hit Streak 10 | . 7 10 3 Robot Miss Streak 7 | . 3 7 3 Penetration Max . | . . . . Secondary Targets 1 | . 1 . . Max Gunslinging Chain 1 | . 1 . . Shots Hit Robots 86 | . 52 29 5 Core Hits 47 | . 19 17 11 Critical Kills . | . . . . Critical Parts Destroyed 1 | . . 1 . Critical Strikes 1 | . . 1 . Destroy 1 | . . 1 . Melee Attacks . | . . . . Impact . | . . . . Slashing . | . . . . Piercing . | . . . . Sneak Attacks . | . . . . Combat Hostiles . | . . . . Follow-up Attacks . | . . . . Damage Inflicted 1472 | . 546 374 552 Guns 920 | . 546 374 . Cannons . | . . . . Explosions 552 | . . . 552 Melee . | . . . . Ramming . | . . . . Kinetic 1472 | . 546 374 552 Thermal . | . . . . Explosive . | . . . . Electromagnetic . | . . . . Impact . | . . . . Slashing . | . . . . Piercing . | . . . . Highest Corruption . | . . . . Average Corruption . | . . . . Corruption Purged . | . . . . Corruption Blocked . | . . . . Overload Shots . | . . . . Overflow Damage 2 | . . . 2 Projectiles . | . . . . Explosions 2 | . . . 2 Melee . | . . . . Knockbacks . | . . . . Impact . | . . . . Kinetic . | . . . . Secondary . | . . . . Self-Inflicted Damage 170 | . . . 170 Shots 6 | . . . 6 Rammed . | . . . . Targets Rammed . | . . . . Kicked . | . . . . Crushed . | . . . . Highest Temperature 64 | . 15 64 . Average Temperature 8 | . 6 9 . Received Heat Transfer 435 | . 186 240 9 Siege Activations . | . . . . Martial Activations . | . . . . Shielding Activations . | . . . . Robots Disrupted . | . . . . Combat Hostiles . | . . . . Robots Corrupted . | . . . . Combat Hostiles . | . . . . Parts Fried . | . . . . Impact Corruptions . | . . . . Robots Melted . | . . . . Combat Hostiles . | . . . . Parts Melted . | . . . . Heat Transferred . | . . . . Parts Sabotaged . | . . . . Parts Stolen . | . . . . Parts Stripped . | . . . . Power Chain Reactions . | . . . . Alert | -11 -10 -10 -10 ------- Run | Yrd Mat Min Sub Maximum Alert Level . | . . . . Low Security (%) 100 | 100 100 100 . Level 1 . | . . . . Level 2 . | . . . . Level 3 . | . . . . Level 4 . | . . . . Level 5 . | . . . . High Security . | . . . . Max Security . | . . . . Peak Influence 100 | . 100 70 . Initial 31 | . . 31 . Average 19 | . 40 11 . Influence Increases 360 | . 200 90 70 Destroy 0b10 Robot/C 300 | . 160 80 60 Destroy Leader 60 | . 40 10 10 Influence Decreases 360 | . 120 156 84 Entered New Map 57 | . . 49 8 Time Decay 273 | . 110 107 56 Lost Part 30 | . 10 . 20 Squads Dispatched 3 | . 3 . . Investigation . | . . . . Extermination . | . . . . Reinforcement 3 | . 3 . . Assault . | . . . . Garrison . | . . . . Intercept . | . . . . Searches Triggered . | . . . . Construction Impeded . | . . . . Haulers Reinforced . | . . . . Active Scanning Responses . | . . . . Cargo Convoy Interrupts . | . . . . Stealth | -11 -10 -10 -10 --------- Run | Yrd Mat Min Sub Distress Signals 1 | . 1 . . Communications Jammed . | . . . . Distress Signals . | . . . . Times Spotted 37 | . 16 13 8 Peak Tracking Total 6 | . 6 3 3 Tactical Retreats 1 | . . 1 . Traps | -11 -10 -10 -10 ------- Run | Yrd Mat Min Sub Traps Triggered 1 | . . . 1 Indirectly . | . . . . Trap Hack Attempts . | . . . . Triggered . | . . . . Disarmed . | . . . . Reprogrammed . | . . . . Reused . | . . . . Traps Extracted . | . . . . Installed . | . . . . Triggered . | . . . . Machines | -11 -10 -10 -10 ---------- Run | Yrd Mat Min Sub Machines Disabled . | . . . . Max in Single Turn . | . . . . Machines Repaired . | . . . . Machines Dismantled . | . . . . Machines Sabotaged . | . . . . Overloaded Fab Kills . | . . . . Hacking | -11 -10 -10 -10 --------- Run | Yrd Mat Min Sub Machines Accessed . | . . . . Terminals . | . . . . Fabricators . | . . . . Repair Stations . | . . . . Recycling Units . | . . . . Scanalyzers . | . . . . Garrison Access . | . . . . Total Hacks . | . . . . Successful . | . . . . Failed . | . . . . Catastrophic . | . . . . Database Lockouts . | . . . . Manual . | . . . . Terminals . | . . . . Fabricators . | . . . . Repair Stations . | . . . . Recycling Units . | . . . . Scanalyzers . | . . . . Garrison Access . | . . . . Terminal Hacks . | . . . . Fabricator Hacks . | . . . . Repair Station Hacks . | . . . . Recycling Unit Hacks . | . . . . Scanalyzer . | . . . . Garrison Access Hacks . | . . . . Unauthorized Hacks . | . . . . Terminals . | . . . . Fabricators . | . . . . Repair Stations . | . . . . Recycling Units . | . . . . Scanalyzers . | . . . . Garrison Access . | . . . . Data Cores Recovered . | . . . . Used . | . . . . Hacking Detections . | . . . . Full Trace Events . | . . . . Feedback Events . | . . . . Feedback Blocked . | . . . . Robot Schematics Acquired . | . . . . Robots Built . | . . . . Authchips . | . . . . Time . | . . . . Total Robot Build Rating . | . . . . Part Schematics Acquired . | . . . . Parts Built . | . . . . Authchips . | . . . . Time . | . . . . Total Part Build Rating . | . . . . Parts Repaired . | . . . . Time . | . . . . Parts Recycled . | . . . . Recycled Matter . | . . . . Retrieved Matter . | . . . . Retrieved Components . | . . . . Parts Scanalyzed . | . . . . Part Schematics Acquired . | . . . . Parts Damaged . | . . . . Bothacking | -11 -10 -10 -10 ------------ Run | Yrd Mat Min Sub Used RIF Installer . | . . . . Robots Hacked . | . . . . Non-combat . | . . . . Combat . | . . . . Robot Hacks Applied . | . . . . Relay Couplers Released . | . . . . Fabnet Peak Effective % . | . . . . Robots Rewired . | . . . . Allies Hacked . | . . . . Hacks Repelled . | . . . . Allies | -11 -10 -10 -10 -------- Run | Yrd Mat Min Sub Total Allies . | . . . . Largest Group . | . . . . Highest-Rated Group . | . . . . Highest-Rated Ally . | . . . . Total Orders . | . . . . Ally Attacks . | . . . . Total Damage . | . . . . Kills . | . . . . Allies Corrupted . | . . . . Allies Melted . | . . . . Intel | -11 -10 -10 -10 ------- Run | Yrd Mat Min Sub Active Infowar (turns) . | . . . . Robot Analysis Total . | . . . . Derelict Logs Recovered 3 | . . 2 1 Drone Launches . | . . . . Drone Recoveries . | . . . . Exploration | -11 -10 -10 -10 ------------- Run | Yrd Mat Min Sub Turns Passed 1400 | 76 329 689 306 Spaces Moved 1020 | 42 109 516 353 Core 5 | 5 . . . Treads 355 | 37 109 209 . Legs . | . . . . Wheels . | . . . . Hover 660 | . . 307 353 Flight . | . . . . Fastest Speed 50 | 50 160 77 77 Average Speed 105 | 146 160 110 77 Slowest Speed 160 | 160 160 160 77 Overloaded Moves . | . . . . Propulsion Burnouts . | . . . . Robots Hopped . | . . . . Potential Cave-ins . | . . . . Cave-ins Triggered . | . . . . Exploration Rate (%) 38 | 4 26 92 32 Regions Visited 3 Branch Regions 2 Pre-discovered Areas . | . . . . Known Exits Taken 2 | . 1 1 . Unknown Exits Taken 1 | 1 . . . Scrap Searched 2 | . . 2 . Spaces Dug . | . . . . Terrain Destroyed 133 | . . . 133 Melee . | . . . . Projectile . | . . . . AOE 133 | . . . 133 Terrain Rammed . | . . . . Walls Destroyed . | . . . . Machines Disabled . | . . . . Actions | -11 -10 -10 -10 --------- Run | Yrd Mat Min Sub Total 1212 | 56 191 586 379 Wait 52 | . 33 13 6 Move 1017 | 41 108 515 353 Hop . | . . . . Pick Up 30 | 9 5 13 3 Fast Attach . | . . . . Attach 12 | 6 2 1 3 Detach . | . . . . Swap 9 | . 2 5 2 Drop 11 | . . 9 2 Fire 81 | . 41 30 10 Melee . | . . . . Ram . | . . . . Kick . | . . . . Crush . | . . . . Escape Stasis . | . . . . Rewire . | . . . . Trap . | . . . . Miscellaneous . | . . . . Route ------- -11/Scrapyard -10/Materials -10/Mines (discovered 3 exits: *Mat x2 / *Sub) -10/Subcaves History --------- Turn | Location | Event 34 | -11/Scrapyard | Discovered new exit (range 15) 77 | -11/Scrapyard | Entered Materials 317 | -10/Materials | Build established: Mutant 381 | -10/Materials | Discovered new exit (range 9) 404 | -10/Materials | Identified exit to Mines 406 | -10/Materials | Entered Mines 536 | -10/Mines | Joined a pair of Derelicts in attacking an 0b10 outpost 548 | -10/Mines | Assembled infested the area 671 | -10/Mines | Found a hidden stash of uninstalled traps 725 | -10/Mines | Core integrity fell below 50% 879 | -10/Mines | Learned Materials emergency access door positions 890 | -10/Mines | Received a Rocket Launcher from a helpful Derelict 971 | -10/Mines | Discovered new exit (range 5) 975 | -10/Mines | Identified exit to Materials 1056 | -10/Mines | Learned Materials terminal intel 1065 | -10/Mines | Discovered exit to Materials (range 7) 1091 | -10/Mines | Discovered new exit (range 6) 1094 | -10/Mines | Identified exit to Subcaves 1095 | -10/Mines | Entered Subcaves 1103 | -10/Subcaves | Learned Materials trap positions 1107 | -10/Subcaves | Build established: Scavenger-Mutant 1145 | -10/Subcaves | Shifting Twisted Machinery released Sub. Shrapnel Launcher 1146 | -10/Subcaves | Shifting Twisted Machinery released Sub. Laser 1191 | -10/Subcaves | Ambushed by Subdweller buried in earth 1226 | -10/Subcaves | Core integrity fell below 20% 1325 | -10/Subcaves | Shifting Twisted Machinery released Battle Cannon 1328 | -10/Subcaves | Shifting Twisted Machinery released Sub. Power Source 1401 | -10/Subcaves | Destroyed self with Subdweller Shrapnel Launcher Last Messages --------------- Y-45 Defender destroyed. 92-4XI(R) destroyed. Lgt. Deuterium Engine destroyed. X6-P45(R) destroyed. Subatomizers dissect the Disposable Heat Sink. Acquired 15 matter. Acquired 14 matter. 2B-HFD(R) destroyed. Subatomizers dissect the Disposable Heat Sink. NF-RN3(R) destroyed. Lgt. Ion Engine destroyed. Destroyed Lgt. Ion Engine. Acquired 5 matter. Acquired 36 matter. Dropped Rocket Launcher. Acquired Scrap Shield. Subatomizers dissect the Disposable Heat Sink, destroying it. Battle Cannon falls loose from the Twisted Machinery. Sub. Power Source falls loose from the Twisted Machinery. Acquired Sub. Power Source. Map ----- +----------------------------------------------------+ | # #???###### #" #???## ###? | | ####### ######????###??? | | # ## # ## ##????????????? | | #####" " # ## ###### ##???????????? | | ### [ !" #### ####??## ##??????????? | | &] ### ## ###?# #######????? | | = ### #? # ????? | | ##### ? ????? | | #" #??# ? ##???? | | ##### ##" " #?## ### # ##### | | ##???#####""#"#"""# #?# #???# ""# | | ?????????########## ### #???## "# | | ??????????????????# ## #####"" "# | | ??????????????????## "" "" "# | | ???????????????????## """" " # | | ????????????????????# ### ] # | | ????????????????????###?## # | | ?????????????????????????# ## """ # | | ??????????????????????#### ### ###" # | | ??????????????????????# ##?# ##### ## | | ??????????????????????## ##??# #???###? | | ???????????????????????## ###???## ##??????? | | ???????????????????#########??????## ##???????? | | ???????????????????# ;;;#####???### ###??????? | | ????### ??##?####?##;;; ## ##### #??????? | | ????# " " # ## ### ; @ #??????? | | ????# #### ##??????? | | ????# R ;;; ##??####???????? | | ???# ## #### ##??????????????? | | ???# ???#### #### #???????????????? | | ???# ????????## ### ##???????????????? | | ?# ???????????# ### #????????????????? | | # ????????????? #?# ## #????????????????? | | ?????????????? #?## ### ## ##????????????????? | | ???????????????#### ??###?######?????????????????? | | ???????????????????#?????????????????????????????? | | ?????????????????????????????????????????????????? | | ?????????????????????????????????????????????????? | | ?????????????????????????????????????????????????? | | ?????????????????????????????????????????????????? | | ?????????????????????????????????????????????????? | | ?????????????????????????????????????????????????? | | ?????????????????????????????????????????????????? | | ?????????????????????????????????????????????????? | | ?????????????????????????????????????????????????? | | ?????????????????????????????????????????????????? | | ?????????????????????????????????????????????????? | | ?????????????????????????????????????????????????? | | ?????????????????????????????????????????????????? | | ?????????????????????????????????????????????????? | +----------------------------------------------------+ Best States ------------- Heat Dissipation 25 Energy Generation 15 Energy Capacity 250 Matter Stores 300 Matter Capacity 300 Sight Range 16 Terrain Scan Density 10 Evasion (%) 49 Recoil Reduction 2 Item Schematics ----------------- None Robot Schematics ------------------ None Fabricated ------------ Nothing Repaired ---------- Nothing Alien Tech Used ----------------- None Achievements -------------- I Survived The Infestation Let's See Who's Tougher Challenges ------------ None Game ------ Seed FactoryAluminumProjector Manual? 0 Play Time 00:17:57 Cumulative 1.9 hours Start 2025.08.05 @ 01:47:49 End 2025.08.05 @ 02:04:04 Sessions 1 Manual Loads 0 Difficulty Rogue Special Mode None Game No. 4 Rogue 4 Adventurer 0 Explorer 0 Win Type - Total 0 Types 0/0/0/0/0/0/0/0/0/0 Lore% 3 Gallery% 5 Achievement% 5 Wizard Run 0 Options --------- Layout 1 ASCII 0 Keyboard 0 Movement Mouse Keybinds 0 Fullscreen 0 Font 18/SmallcapsGlow Map View 76x50 Zoom Use 0% Tactical HUD 0 Map Filters NONE Filters NONE Steam 0 RUN: 21be0ff4-bf5f-4939-8af6-62530ddb665c